fUSD/lending_fUSD_20240904
["ID","MTS","AMOUNT","RATE_DAILY","PERIOD"]
[337169488,1725478376211,150.0,0.0001268,2]
[337169489,1725478376234,48.44490596,0.0001268,2]
[337169490,1725478395489,500.0,0.00027,120]
[337169491,1725478402182,2000.0,0.00027,120]
[337169492,1725478409602,500.0,0.00027,120]
[337169493,1725478417671,200.0,0.00027,120]
[337169494,1725478581035,150.0,0.00010959,2]
[337169495,1725478581059,48.6,0.00010959,2]
[337169496,1725478636452,171.41,0.00011924,2]
[337169497,1725478692727,150.0,0.0001266,2]
[337169498,1725478692749,150.0,0.0001266,2]
[337169499,1725478692774,96.8898119,0.0001266,2]
[337169500,1725478694531,-157.10528214,0.00012751,2]
[337169501,1725478695199,-280.78,0.00012751,2]
[337169502,1725478706153,-150.0,0.0001275,2]
[337169503,1725478712093,150.0,0.00011928,2]
[337169504,1725478712121,100.0,0.00011928,2]
[337169505,1725478715225,50.0,0.00011932,2]
[337169506,1725478715246,150.0,0.00011932,2]
[337169507,1725478715268,150.0,0.00011932,2]
[337169508,1725478715294,150.0,0.00011932,2]
[337169509,1725478715320,150.0,0.00011932,2]
[337169510,1725478715341,150.0,0.00011932,2]
[337169511,1725478715920,150.0,0.00011932,2]
[337169512,1725478715957,150.0,0.00011932,2]
[337169513,1725478715978,150.0,0.00011932,2]
[337169514,1725478715998,150.0,0.00011932,2]
[337169515,1725478716018,100.0,0.00011932,2]
[337169516,1725478719725,515.27,0.00011932,2]
[337169517,1725478730350,250.0,0.00011939,2]
[337169518,1725478750775,150.0,0.00011947,2]
[337169519,1725478750800,150.0,0.00011947,2]
[337169520,1725478750826,150.0,0.00011947,2]
[337169521,1725478750853,150.0,0.00011947,2]
[337169522,1725478750878,150.0,0.00011947,2]
[337169523,1725478750908,150.0,0.00011947,2]
[337169524,1725478750932,150.0,0.00011947,2]
[337169525,1725478750953,150.0,0.00011947,2]
[337169526,1725478750976,150.0,0.00011947,2]
[337169527,1725478750999,150.0,0.00011947,2]
[337169528,1725478751023,150.0,0.00011947,2]
[337169529,1725478751044,297.18,0.00011947,2]
[337169530,1725478751071,16723.95,0.00011947,2]
[337169531,1725478751102,5228.87,0.00011947,2]
[337169532,1725478772060,150.0,0.00011963,2]
[337169533,1725478772082,150.0,0.00011963,2]
[337169534,1725478772106,150.0,0.00011963,2]
[337169535,1725478772128,50.0,0.00011963,2]
[337169536,1725478787141,150.0,0.00011976,2]
[337169537,1725478882785,150.0,0.00010168,2]
[337169538,1725478882808,150.0,0.00010168,2]
[337169539,1725478882829,150.0,0.00010168,2]
[337169540,1725478882851,11.29,0.00010168,2]
[337169541,1725478882926,138.71,0.00012432,2]
[337169542,1725478882953,150.0,0.00012432,2]
[337169543,1725478882974,150.0,0.00012432,2]
[337169544,1725478882998,22.58,0.00012432,2]
[337169545,1725478900861,2087.0,0.00025,60]
[337169546,1725478913011,150.0,0.00012081,2]
[337169547,1725478913032,1.92,0.00012081,2]
[337169548,1725478942495,150.0,0.00012024,2]
[337169549,1725478942518,150.0,0.00012024,2]
[337169550,1725478942539,150.0,0.00012024,2]
[337169551,1725478942559,150.0,0.00012024,2]
[337169552,1725478942580,150.0,0.00012024,2]
[337169553,1725478942601,150.0,0.00012024,2]
[337169554,1725478942621,43.55,0.00012024,2]
[337169555,1725478982647,150.0,0.00011967,2]
[337169556,1725478982669,150.0,0.00011967,2]
[337169557,1725478982692,150.0,0.00011967,2]
[337169558,1725478982714,150.0,0.00011967,2]
[337169559,1725478982735,150.0,0.00011967,2]
[337169560,1725478982757,150.0,0.00011967,2]
[337169561,1725478982778,150.0,0.00011967,2]
[337169562,1725478982799,150.0,0.00011967,2]
[337169563,1725478982820,37.68,0.00011967,2]
[337169564,1725478985232,-202.53,0.00012677,2]
[337169565,1725478988125,-150.0,0.00012677,2]
[337169566,1725478996797,500.0,0.00026981,120]
[337169567,1725479001879,150.0,0.00011932,2]
[337169568,1725479001899,150.0,0.00011932,2]
[337169569,1725479001919,150.0,0.00011932,2]
[337169570,1725479001938,50.0,0.00011932,2]
[337169571,1725479003894,2000.0,0.00026981,120]
[337169572,1725479017644,500.0,0.00026981,120]
[337169573,1725479021469,150.0,0.00011959,2]
[337169574,1725479021492,150.0,0.00011959,2]
[337169575,1725479021515,150.0,0.00011959,2]
[337169576,1725479021537,250.0,0.00011959,2]
[337169577,1725479021562,300.0,0.00011959,2]
[337169578,1725479023618,500.0,0.00026981,120]
[337169579,1725479035082,150.0,0.00012079,2]
[337169580,1725479035103,150.0,0.00012079,2]
[337169581,1725479035123,156.53,0.00012079,2]
[337169582,1725479035142,150.0,0.00012079,2]
[337169583,1725479035165,37504.86,0.00012079,2]
[337169584,1725479035887,200.0,0.00026981,120]
[337169585,1725479077812,150.0,0.00012027,2]
[337169586,1725479077835,150.0,0.00012027,2]
[337169587,1725479077858,150.0,0.00012027,2]
[337169588,1725479077880,150.0,0.00012027,2]
[337169589,1725479077903,150.0,0.00012027,2]
[337169590,1725479077926,150.0,0.00012027,2]
[337169591,1725479077948,150.0,0.00012027,2]
[337169592,1725479077969,150.0,0.00012027,2]
[337169593,1725479077996,4073.51,0.00012027,2]
[337169594,1725479115133,150.0,0.00010959,2]
[337169595,1725479115154,8.17,0.00010959,2]
[337169596,1725479117322,181.79,9.613e-05,2]
[337169597,1725479118228,278.96,0.00012017,2]
[337169598,1725479127224,279.71528214,0.00012017,2]
[337169599,1725479127251,408.16471786,0.00012017,2]
[337169600,1725479132438,150.0,0.00012039,2]
[337169601,1725479132467,21.41,0.00012039,2]
[337169602,1725479133342,150.0,0.00012017,2]
[337169603,1725479133365,150.0,0.00012017,2]
[337169604,1725479133387,150.0,0.00012017,2]
[337169605,1725479133411,2186.75,0.00012017,2]
[337169606,1725479144706,150.0,0.00012039,2]
[337169607,1725479144727,150.0,0.00012039,2]
[337169608,1725479144748,150.0,0.00012039,2]
[337169609,1725479144769,150.0,0.00012039,2]
[337169610,1725479144789,150.0,0.00012039,2]
[337169611,1725479144813,4882.33,0.00012039,2]
[337169612,1725479188539,250.0,0.0001207,2]
[337169613,1725479207416,250.0,0.00012099,2]
[337169614,1725479247007,175.76,0.00012038,2]
[337169615,1725479272158,23900.0,0.00012039,2]
[337169616,1725479274910,356.38,0.00012048,2]
[337169617,1725479286227,150.0,0.00012048,2]
[337169618,1725479298137,250.0,0.00012048,2]
[337169619,1725479341479,1500.0,0.00012145,2]
[337169626,1725479431777,-413.0,0.00012577,2]
[337169627,1725479431787,-104.85511205,0.00012578,2]
[337169628,1725479431799,-795.14488795,0.00012578,2]
[337169629,1725479431809,-25.72920074,0.0001274,2]
[337169630,1725479431845,-124.27079926,0.0001274,2]
[337169631,1725479431855,-61.415,0.0001276,2]
[337169632,1725479431864,-300.0,0.0001276,2]
[337169633,1725479432028,-32594.61810485,0.0001276,2]
[337169634,1725479432056,-300.0,0.00012778,2]
[337169635,1725479432066,-150.0,0.00012789,2]
[337169636,1725479432075,-499.99,0.00012804,2]
[337169637,1725479432087,-503.0,0.00012804,2]
[337169638,1725479432096,-318.3176952,0.00012804,2]
[337169639,1725479432107,-816.99,0.00012804,2]
[337169640,1725479432125,-328.75088608,0.00012815,2]
[337169641,1725479432134,-2380.42,0.00012815,2]
[337169642,1725479432143,-150.99,0.00012815,2]
[337169643,1725479432154,-10232.67,0.00012868,2]
[337169644,1725479432163,-150.99,0.00012868,2]
[337169645,1725479432173,-249.19468293,0.0001287,2]
[337169646,1725479432182,-740.74290093,0.00012879,2]
[337169647,1725479432194,-168635.18002737,0.0001288,2]
[337169648,1725479432205,-785.42033485,0.0001288,2]
[337169649,1725479432229,-2130.44985288,0.0001288,2]
[337169650,1725479432239,-827.13712285,0.0001288,2]
[337169651,1725479432254,-2920.8297893,0.0001288,2]
[337169655,1725479437955,-587.5728,0.0001288,2]
[337169804,1725479439758,-2016.437266,0.0001288,2]
[337169806,1725479439771,-7241.32211403,0.0001288,2]
[337169812,1725479439815,-344.62556429,0.0001288,2]
[337169819,1725479439873,-900.71549999,0.0001288,2]
[337169825,1725479439942,-289.933736,0.0001288,2]
[337169826,1725479439989,-1159.39094301,0.0001288,2]
[337169827,1725479440048,-1084.51783063,0.0001288,2]
[337169828,1725479440136,-676.78766256,0.0001288,2]
[337169829,1725479440149,-1043.21965598,0.0001288,2]
[337169851,1725479443841,-5814.4056,0.0001288,2]
[337169852,1725479444142,150.0,0.00012478,2]
[337169859,1725479445905,-4181.0051823,0.00012679,2]
[337169860,1725479445980,-599.38775637,0.00012679,2]
[337169861,1725479446015,-5412.62886133,0.00012679,2]
[337169862,1725479446024,-11429.48720105,0.0001288,2]
[337169863,1725479446033,-356.6574,0.0001288,2]
[337169864,1725479446043,-1396.31067,0.000129,2]
[337169865,1725479446052,-154.55,0.00012904,2]
[337169866,1725479446062,-154.55,0.00012912,2]
[337169867,1725479446071,-154.55,0.0001292,2]
[337169868,1725479446080,-154.55,0.00012928,2]
[337169869,1725479446089,-154.55,0.00012936,2]
[337169870,1725479446098,-154.55,0.00012944,2]
[337169871,1725479446107,-154.55,0.00012952,2]
[337169872,1725479446119,-154.55,0.0001296,2]
[337169873,1725479446128,-154.55,0.00012968,2]
[337169874,1725479446137,-152.37,0.00013032,2]
[337169875,1725479446146,-318.31769518,0.00013037,2]
[337169876,1725479446155,-368.0,0.00013181,2]
[337169877,1725479446164,-1396.31067,0.0001322,2]
[337169878,1725479446173,-318.31769518,0.0001327,2]
[337169879,1725479446182,-1000.0,0.00013454,2]
[337169880,1725479446191,-150.0,0.00013488,2]
[337169881,1725479446201,-150.0,0.00013488,2]
[337169882,1725479446212,-150.0,0.00013488,2]
[337169883,1725479446223,-318.31769518,0.00013503,2]
[337169884,1725479446233,-184.17,0.00013514,2]
[337169885,1725479446243,-1396.31068,0.0001353,2]
[337169886,1725479446253,-500.0,0.00013699,2]
[337169887,1725479446262,-318.31769518,0.00013736,2]
[337169888,1725479446272,-1396.31067,0.0001384,2]
[337169889,1725479446281,-700.0,0.000139,5]
[337169890,1725479446291,-171.41,0.00013911,2]
[337169891,1725479446300,-318.31769518,0.00013968,2]
[337169892,1725479446309,-1500.0,0.00014,5]
[337169893,1725479446318,-420.0,0.00014016,2]
[337169894,1725479446327,-2300.0,0.000141,5]
[337169895,1725479446337,-3100.0,0.000142,5]
[337169896,1725479446347,-318.31769518,0.00014201,2]
[337169897,1725479446356,-3800.0,0.000143,5]
[337169898,1725479446365,-500.0,0.00014399,2]
[337169899,1725479446374,-268.98612969,0.00014399,2]
[337169900,1725479446383,-500.0,0.00014399,2]
[337169901,1725479446392,-429.50007452,0.00014399,2]
[337169902,1725479446401,-1000.0,0.000144,2]
[337169903,1725479446410,-1000.0,0.000144,2]
[337169904,1725479446419,-1000.0,0.000144,2]
[337169905,1725479446428,-1000.0,0.000144,2]
[337169906,1725479446437,-1000.0,0.000144,2]
[337169907,1725479446447,-1000.0,0.000144,2]
[337169908,1725479446458,-1000.0,0.000144,2]
[337169909,1725479446466,-1000.0,0.000144,2]
[337169910,1725479446475,-1000.0,0.000144,2]
[337169911,1725479446485,-1000.0,0.000144,2]
[337169912,1725479446493,-1000.0,0.000144,2]
[337169913,1725479446502,-1000.0,0.000144,2]
[337169914,1725479446511,-1000.0,0.000144,2]
[337169915,1725479446521,-1000.0,0.000144,2]
[337169916,1725479446531,-1000.0,0.000144,2]
[337169917,1725479446540,-1000.0,0.000144,2]
[337169918,1725479446550,-1000.0,0.000144,2]
[337169919,1725479446559,-1000.0,0.000144,2]
[337169920,1725479446568,-1000.0,0.000144,2]
[337169921,1725479446578,-1000.0,0.000144,2]
[337169922,1725479446587,-1000.0,0.000144,2]
[337169923,1725479446597,-855.0,0.000144,2]
[337169924,1725479446607,-1000.0,0.000144,2]
[337169925,1725479446616,-1000.0,0.000144,2]
[337169926,1725479446625,-1000.0,0.000144,2]
[337169927,1725479446635,-1000.0,0.000144,2]
[337169928,1725479446644,-1000.0,0.000144,2]
[337169929,1725479446654,-1000.0,0.000144,2]
[337169930,1725479446662,-1000.0,0.000144,2]
[337169931,1725479446671,-1000.0,0.000144,2]
[337169932,1725479446681,-1000.0,0.000144,2]
[337169933,1725479446691,-1000.0,0.000144,2]
[337169934,1725479446700,-1000.0,0.000144,2]
[337169935,1725479446709,-1000.0,0.000144,2]
[337169936,1725479446718,-1000.0,0.000144,2]
[337169937,1725479446728,-1000.0,0.000144,2]
[337169938,1725479446737,-1000.0,0.000144,2]
[337169939,1725479446746,-1000.0,0.000144,2]
[337169940,1725479446755,-1000.0,0.000144,2]
[337169941,1725479446765,-1000.0,0.000144,2]
[337169942,1725479446774,-1000.0,0.000144,2]
[337169943,1725479446783,-1000.0,0.000144,2]
[337169944,1725479446792,-1000.0,0.000144,2]
[337169945,1725479446802,-1000.0,0.000144,2]
[337169946,1725479446811,-1000.0,0.000144,2]
[337169947,1725479446821,-1000.0,0.000144,2]
[337169948,1725479446830,-1000.0,0.000144,2]
[337169949,1725479446839,-1000.0,0.000144,2]
[337169950,1725479446850,-1000.0,0.000144,2]
[337169951,1725479446859,-1000.0,0.000144,2]
[337169952,1725479446868,-396.27,0.000144,2]
[337169953,1725479446878,-700.0,0.000144,5]
[337169954,1725479446887,-181.79,0.0001442,2]
[337169955,1725479446896,-318.31769518,0.00014434,2]
[337169956,1725479446906,-1546.0,0.00014464,2]
[337169957,1725479446915,-1260.0,0.00014464,2]
[337169958,1725479446925,-447.0,0.00014464,2]
[337169959,1725479446934,-624.0,0.00014464,2]
[337169960,1725479446944,-491.421,0.00014464,2]
[337169961,1725479446954,-931.0,0.00014464,2]
[337169962,1725479446963,-552.0,0.00014464,2]
[337169963,1725479446973,-1899.0,0.00014464,2]
[337169964,1725479446982,-2652.659,0.00014464,2]
[337169965,1725479446992,-248.0,0.00014464,2]
[337169966,1725479447002,-1134.0,0.00014464,2]
[337169967,1725479447011,-150.0,0.00014464,2]
[337169968,1725479447020,-2007.435,0.00014464,2]
[337169969,1725479447030,-1396.31068,0.0001447,2]
[337169970,1725479447039,-700.0,0.000145,5]
[337169971,1725479447050,-700.0,0.000146,5]
[337169972,1725479447059,-152.37,0.00014661,2]
[337169973,1725479447068,-318.31769518,0.00014667,2]
[337169974,1725479447078,-461.29,0.00014696,2]
[337169975,1725479447087,-700.0,0.000147,5]
[337169976,1725479447096,-25947.113142,0.000148,2]
[337169977,1725479447105,-270.06355,0.000148,2]
[337169978,1725479447115,-151.0,0.000148,2]
[337169979,1725479447127,-151.0,0.000148,2]
[337169980,1725479447136,-260.107897,0.000148,2]
[337169981,1725479447146,-260.107897,0.000148,2]
[337169982,1725479447155,-1353.0,0.000148,5]
[337169983,1725479447165,-297.982,0.00014869,2]
[337169984,1725479447174,-500.0,0.0001488,2]
[337169985,1725479447183,-209.96855529,0.000149,2]
[337169986,1725479447193,-2411.11389154,0.000149,2]
[337169987,1725479447202,-158.013113,0.000149,8]
[337169988,1725479447212,-504.71591214,0.000149,2]
[337169989,1725479447221,-335.86963918,0.000149,2]
[337169990,1725479447230,-318.31769518,0.000149,2]
[337169991,1725479447239,-289.401147,0.000149,2]
[337169992,1725479447247,-1000.0,0.00014949,2]
[337169993,1725479447257,-151.0,0.0001499,2]
[337169994,1725479447266,-151.0,0.0001499,2]
[337169995,1725479447275,-151.0,0.0001499,2]
[337169996,1725479447284,-151.0,0.0001499,2]
[337169997,1725479447293,-202.833818,0.0001499,2]
[337169998,1725479447302,-334.23562323,0.0001499,3]
[337169999,1725479447310,-150.83,0.0001499,2]
[337170000,1725479447319,-263.2636356,0.0001499,2]
[337170001,1725479447328,-263.2636356,0.0001499,2]
[337170002,1725479447337,-263.2636356,0.0001499,2]
[337170003,1725479447346,-401.1679381,0.00014998,2]
[337170004,1725479447355,-3390.8862318,0.00014998,2]
[337170005,1725479447364,-1100.0,0.00014998,3]
[337170006,1725479447375,-151.0,0.00014998,2]
[337170007,1725479447384,-151.0,0.00014998,2]
[337170008,1725479447393,-2128.56637283,0.00014999,2]
[337170009,1725479447401,-62955.27196436,0.00015,2]
[337170010,1725479447431,-16843.27673407,0.00015,2]
[337170011,1725479447440,-2098.55169257,0.00015,2]
[337170012,1725479596704,500.0,0.0002471,120]
[337170013,1725479597084,500.0,0.00025087,120]
[337170014,1725479597547,500.0,0.00025465,120]
[337170015,1725479597977,500.0,0.00025843,120]
[337170016,1725479598492,500.0,0.00026221,120]
[337170017,1725479598876,500.0,0.00026599,120]
[337170018,1725479599276,573.466051,0.00026977,120]
[337170019,1725479602239,2000.0,0.00026111,120]
[337170020,1725479608892,500.0,0.0002504,120]
[337170021,1725479609451,500.0,0.0002654,120]
[337170022,1725479617198,200.0,0.0002404,120]
[337170023,1725479652063,150.0,0.000123,2]
[337170024,1725479652082,150.0,0.000123,2]
[337170025,1725479652101,150.0,0.000123,2]
[337170026,1725479652120,150.0,0.000123,2]
[337170027,1725479652140,150.0,0.000123,2]
[337170028,1725479697881,150.0,0.00011249,2]
[337170029,1725479697907,150.0,0.00011249,2]
[337170030,1725479697932,150.0,0.00011249,2]
[337170031,1725479697957,150.0,0.00011249,2]
[337170032,1725479697981,71.24,0.00011249,2]
[337170033,1725479698066,78.76,0.00012479,2]
[337170034,1725479698093,141.04793522,0.00012479,2]
[337170035,1725479757605,150.0,0.00012478,2]
[337170036,1725479757627,150.0,0.00012478,2]
[337170037,1725479757651,150.0,0.00012478,2]
[337170038,1725479757673,150.0,0.00012478,2]
[337170039,1725479757693,150.0,0.00012478,2]
[337170040,1725479757714,150.0,0.00012478,2]
[337170041,1725479757736,150.0,0.00012478,2]
[337170042,1725479757757,150.0,0.00012478,2]
[337170043,1725479757777,231.16678264,0.00012478,2]
[337170044,1725479757805,302.62586708,0.00012478,2]
[337170045,1725479761042,1114.0,0.00012514,2]
[337170046,1725479838961,-170.0,0.00012615,2]
[337170047,1725479868824,425.1106269,0.00027,120]
[337170048,1725479931962,550.0,0.00011,2]
[337170049,1725480077306,150.0,0.00012451,2]
[337170050,1725480077331,150.0,0.00012451,2]
[337170051,1725480077351,150.0,0.00012451,2]
[337170052,1725480077372,13.802575,0.00012451,2]
[337170053,1725480196600,500.0,0.00024914,120]
[337170054,1725480199754,2000.0,0.00026473,120]
[337170055,1725480206030,500.0,0.00024914,120]
[337170056,1725480210189,500.0,0.00026255,120]
[337170057,1725480220914,200.0,0.00023914,120]
[337170058,1725480239239,243.58,0.00010959,2]
[337170059,1725480323202,637.67,0.00010896,2]
[337170060,1725480508925,150.0,0.00011911,2]
[337170061,1725480508949,0.1,0.00011911,2]
[337170062,1725480554040,-200.01451827,0.00012514,2]
[337170063,1725480554070,-2493.0,0.00012614,2]
[337170064,1725480554098,-300.0,0.00012678,2]
[337170065,1725480554125,-300.0,0.00012678,2]
[337170066,1725480554152,-222.0,0.00012679,2]
[337170067,1725480554346,-1405.8639,0.00012679,2]
[337170068,1725480554374,-388.33527436,0.00012679,2]
[337170069,1725480554409,-5309.21369263,0.00012679,2]
[337170070,1725480554445,-5309.21369263,0.00012679,2]
[337170071,1725480554508,-3002.75992646,0.00012679,2]
[337170072,1725480554618,-1492.95822672,0.00012679,2]
[337170073,1725480554646,-600.0,0.00012701,2]
[337170074,1725480554673,-394.52,0.00012707,2]
[337170075,1725480554700,-250.0,0.00012732,2]
[337170076,1725480554727,-1500.0,0.00012732,2]
[337170077,1725480554754,-1071.73546591,0.00012743,2]
[337170078,1725480554798,-5309.21369263,0.00012743,2]
[337170079,1725480554834,-5309.21369263,0.00012743,2]
[337170080,1725480554868,-5309.21369263,0.00012743,2]
[337170081,1725480579108,-6112.55880812,0.00012743,2]
[337170082,1725480579159,-788.06464808,0.00012743,2]
[337170083,1725480579186,-2000.0,0.00012754,2]
[337170084,1725480579214,-137.00724377,0.00012754,2]
[337170095,1725480632016,-720.01275623,0.00012754,2]
[337170096,1725480632026,-312.00037506,0.00012768,2]
[337170097,1725480632037,-250.33780553,0.00012768,2]
[337170098,1725480632048,-617.35181941,0.00012768,2]
[337170099,1725480632058,-250.0,0.00012769,2]
[337170100,1725480632067,-1824.33289504,0.00012776,2]
[337170101,1725480632079,-1088.89710496,0.00012776,2]
[337170102,1725480632089,-171.42,0.00012781,2]
[337170103,1725480632098,-150.99,0.00012781,2]
[337170104,1725480632108,-499.99,0.00012781,2]
[337170105,1725480632117,-899.01846859,0.00012801,2]
[337170106,1725480632140,-499.60047608,0.00012801,2]
[337170107,1725480632232,-246.84105533,0.00012801,2]
[337170109,1725480632242,-163.72,0.0001281,2]
[337170111,1725480632251,-794.68,0.0001281,2]
[337170113,1725480632260,-900.96,0.00012817,2]
[337170115,1725480632269,-6393.79894467,0.00012825,2]
[337170116,1725480632280,-1200.45105533,0.00012825,2]
[337170117,1725480632289,-443.18,0.00012826,2]
[337170118,1725480632298,-96.36894467,0.00012833,2]
[337170122,1725480638033,-1049.27399996,0.00012833,2]
[337170123,1725480638282,-198.64705537,0.00012833,2]
[337170124,1725480638292,-453.52284082,0.00012834,2]
[337170125,1725480638325,-0.32919178,0.00012834,2]
[337170126,1725480638336,-107.5679674,0.00012834,2]
[337170127,1725480638346,-150.0,0.00012835,2]
[337170128,1725480638356,-162.4320326,0.00012847,2]
[337170129,1725480638391,-237.5679674,0.00012847,2]
[337170130,1725480638401,-394.75,0.00012849,2]
[337170132,1725480638410,-570.07933744,0.0001287,2]
[337170134,1725480638422,-598.75373411,0.0001287,2]
[337170136,1725480638433,-270.9400001,0.0001287,2]
[337170138,1725480638445,-5619.1825323,0.0001287,2]
[337170140,1725480638455,-179.99,0.00012893,2]
[337170142,1725480638464,-74.05103281,0.00012906,2]
[337170144,1725480638476,-175.94896719,0.00012906,2]
[337170146,1725480638485,-595.1221919,0.00012929,2]
[337170286,1725480639982,-256.0278081,0.00012929,2]
[337170288,1725480639991,-161.85,0.00012973,2]
[337170289,1725480640001,-637.67,0.0001316,2]
[337170290,1725480640011,-1265.733,0.00013162,2]
[337170291,1725480640020,-331.43,0.00013164,2]
[337170292,1725480640030,-123.26392843,0.00013262,2]
[337170293,1725480640049,-131.73607157,0.00013262,2]
[337170294,1725480640060,-150.0,0.00013488,2]
[337170295,1725480640069,-150.0,0.00013488,2]
[337170296,1725480640078,-150.15075572,0.00013488,2]
[337170297,1725480640088,-150.0,0.00013488,2]
[337170298,1725480640097,-150.0,0.00013488,2]
[337170299,1725480640106,-150.17183139,0.00013488,2]
[337170300,1725480640115,-150.00000001,0.00013488,2]
[337170301,1725480640124,-150.16551522,0.00013488,2]
[337170302,1725480640133,-150.0,0.00013488,2]
[337170303,1725480640142,-150.0,0.00013488,2]
[337170304,1725480640151,-933.37,0.00013637,2]
[337170305,1725480640161,-933.37,0.0001364,2]
[337170306,1725480640171,-933.37,0.00013644,2]
[337170307,1725480640180,-933.37,0.00013648,2]
[337170308,1725480640189,-933.37,0.00013651,2]
[337170309,1725480640199,-933.37,0.00013655,2]
[337170310,1725480640208,-933.37,0.00013658,2]
[337170311,1725480640217,-933.37,0.00013662,2]
[337170312,1725480640227,-933.37,0.00013665,2]
[337170313,1725480640237,-933.37,0.00013669,2]
[337170314,1725480640246,-933.37,0.00013673,2]
[337170315,1725480640255,-933.37,0.00013676,2]
[337170316,1725480640264,-933.37,0.0001368,2]
[337170317,1725480640274,-933.37,0.00013683,2]
[337170318,1725480640283,-933.37,0.00013687,2]
[337170319,1725480640293,-432.91,0.00013689,2]
[337170320,1725480640302,-933.37,0.00013691,2]
[337170321,1725480640311,-933.37,0.00013694,2]
[337170322,1725480640320,-933.37,0.00013698,2]
[337170323,1725480640329,-392.67,0.00013699,2]
[337170324,1725480640338,-500.0,0.00013699,2]
[337170325,1725480640348,-933.37,0.00013701,2]
[337170326,1725480640356,-933.37,0.00013705,2]
[337170327,1725480640365,-150.0,0.00013862,2]
[337170328,1725480640374,-400.0,0.000139,5]
[337170329,1725480640383,-800.0,0.00014,5]
[337170330,1725480640393,-432.91,0.0001409,2]
[337170331,1725480640402,-1200.0,0.000141,5]
[337170332,1725480640411,-1700.0,0.000142,5]
[337170333,1725480640420,-150.0,0.00014237,2]
[337170334,1725480640429,-150.0,0.00014237,2]
[337170335,1725480640438,-600.0,0.00014289,2]
[337170336,1725480640447,-201.13850173,0.00014289,2]
[337170341,1725480640527,-231.77149827,0.00014289,2]
[337170342,1725480640537,-432.91,0.00014289,2]
[337170343,1725480640546,-432.91,0.00014289,2]
[337170344,1725480640555,-432.91,0.0001429,2]
[337170345,1725480640564,-2049.35432483,0.00014299,2]
[337170346,1725480640576,-2778.37187532,0.00014299,2]
[337170347,1725480640598,-522.77982189,0.00014299,2]
[337170348,1725480640609,-582.72,0.00014299,2]
[337170349,1725480640631,-4580.74187796,0.00014299,2]
[337170350,1725480640640,-1653.75495196,0.000143,5]
[337170368,1725480643481,-446.24504804,0.000143,5]
[337170370,1725480643490,-336.83,0.000144,2]
[337170372,1725480643501,-400.0,0.000144,5]
[337170374,1725480643514,-400.0,0.00014453,2]
[337170376,1725480643523,-400.0,0.000145,5]
[337170378,1725480643532,-150.0,0.00014563,2]
[337170379,1725480643542,-421.15547501,0.00014565,2]